bitfinex/quotes_ETHUSD_20260129
["timestamp","ask_amount","ask_price","bid_price","bid_amount"]
[1769702667268,0.03555745,2822.5,2820.6,0.88631663]
[1769702667269,13.08691631,2822.2,2820.6,0.88631663]
[1769702667501,13.08691631,2822.0,2820.7,0.44317641]
[1769702667705,13.97284423,2821.9,2820.3,0.88643052]
[1769702668201,13.97284423,2821.9,2820.1,0.88648051]
[1769702668202,13.08691631,2821.7,2820.1,0.88648051]
[1769702668379,13.08691631,2821.7,2820.2,0.88645127]
[1769702668765,13.08691631,2821.7,2820.2,0.88645732]
[1769702668968,1.30869163,2821.6,2820.3,0.44324273]
[1769702669178,14.39560794,2821.6,2820.3,0.44324273]
[1769702669368,13.08691631,2821.4,2819.1,8.64130707]
[1769702669569,0.88605351,2821.5,2820.0,3.54584781]
[1769702670303,0.88605351,2821.5,2819.9,0.88655626]
[1769702670871,13.97296982,2821.5,2819.9,0.88655626]
[1769702671071,13.97296982,2821.5,2819.7,0.742]
[1769702671428,13.08691631,2820.8,2818.8,0.88687886]
[1769702671572,13.08691631,2820.8,2818.5,0.002]
[1769702671573,13.08691631,2820.8,2818.7,3.54772869]
[1769702671773,13.08691631,2820.6,2819.0,0.03555745]
[1769702671972,13.08691631,2820.6,2818.8,0.03555745]
[1769702672572,13.08691631,2820.6,2818.9,0.03555745]
[1769702672803,14.83876035,2820.6,2818.6,0.03555745]
[1769702672996,14.83876035,2820.6,2818.8,0.03555745]
[1769702673709,0.88636766,2820.5,2818.9,0.88687076]
[1769702674025,13.97326893,2820.6,2818.9,0.88687076]
[1769702674316,13.97326893,2820.6,2819.0,3.79]
[1769702674486,13.9402253,2820.4,2818.9,0.742]
[1769702675515,13.9402253,2820.4,2819.0,0.002]
[1769702675714,13.9402253,2820.2,2819.0,0.002]
[1769702676512,13.9402253,2820.0,2818.8,0.002]
[1769702676718,13.9402253,2819.8,2818.5,0.002]
[1769702676912,14.6822253,2819.8,2818.5,0.002]
[1769702677915,13.9402253,2819.6,2818.5,0.002]
[1769702679914,13.9402253,2819.4,2817.7,0.002]
[1769702681380,13.9402253,2819.4,2817.8,0.03555745]
[1769702681578,15.77758885,2819.4,2817.7,0.002]
[1769702681885,13.9402253,2819.2,2817.7,0.002]
[1769702682329,13.00065561,2819.2,2817.7,0.002]
[1769702683424,13.9402253,2819.0,2817.7,0.002]
[1769702683625,13.9402253,2818.8,2817.7,0.002]
[1769702683923,13.9402253,2818.6,2817.7,0.002]
[1769702684221,0.88699662,2818.5,2817.7,0.002]
[1769702684397,14.82722192,2818.5,2817.7,0.002]
[1769702685911,13.9402253,2818.3,2816.5,0.002]
[1769702686113,14.6832253,2818.2,2816.7,0.887554]
[1769702686315,14.6832253,2818.2,2816.5,0.002]
[1769702686316,0.887154,2818.0,2816.5,0.002]
[1769702686494,14.8273793,2818.0,2816.5,0.002]
[1769702687329,14.8273793,2818.0,2817.9,0.002]
[1769702687524,14.8273793,2818.0,2816.5,0.002]
[1769702687683,13.9402253,2817.8,2816.5,0.002]
[1769702688404,0.88724846,2817.7,2816.5,0.002]
[1769702688614,0.88724846,2817.7,2817.6,0.002]
[1769702688818,13.9402253,2817.6,2816.5,0.002]
[1769702689127,14.6832253,2817.5,2816.5,0.002]
[1769702689326,14.6832253,2817.5,2816.5,0.22257748]
[1769702689539,0.743,2817.5,2816.5,0.22257748]
[1769702690225,0.88722318,2817.8,2816.5,0.22257748]
[1769702690430,0.88717571,2818.0,2816.6,0.88759497]
[1769702690727,0.88717571,2818.0,2816.7,0.46605523]
[1769702690931,13.9402253,2817.9,2816.7,0.46605523]
[1769702691111,13.9402253,2817.9,2816.5,1.11020022]
[1769702691112,13.97578275,2817.9,2816.5,1.11020022]
[1769702691434,13.97578275,2817.9,2816.5,0.22257748]
[1769702691806,13.97578275,2817.9,2816.5,1.1102028]
[1769702692001,13.97578275,2817.9,2816.5,0.22257748]
[1769702692430,13.9402253,2817.7,2816.5,1.11020246]
[1769702692751,14.6832253,2817.6,2816.5,0.22257748]
[1769702692901,14.6832253,2817.6,2816.5,0.002]
[1769702693095,14.6832253,2817.6,2816.5,0.88961838]
[1769702693301,0.743,2817.7,2816.5,0.88961838]
[1769702693601,13.9402253,2817.7,2816.5,0.002]
[1769702693825,15.42296953,2817.6,2816.5,0.002]
[1769702694232,15.42296953,2817.6,2816.5,0.88962254]
[1769702694531,0.88731144,2817.5,2816.5,0.002]
[1769702694933,14.82753674,2817.5,2816.5,0.002]
[1769702695534,14.86309419,2817.5,2815.7,0.002]
[1769702695742,13.11546305,2817.1,2815.7,0.002]
[1769702696040,0.03555745,2817.2,2815.7,0.002]
[1769702696041,13.11546305,2816.9,2815.7,0.002]
[1769702696245,14.50130936,2816.8,2815.7,0.88987562]
[1769702696452,0.88756346,2816.7,2815.7,0.002]
[1769702696745,15.24430936,2816.8,2815.7,0.002]
[1769702696949,0.743,2817.0,2815.7,0.002]
[1769702697943,13.85846305,2817.0,2815.7,0.002]
[1769702698660,0.88750044,2816.9,2815.7,0.002]
[1769702699419,14.00296349,2816.9,2815.7,0.002]
[1769702700258,14.00296349,2816.9,2815.9,0.002]
[1769702700427,13.11546305,2816.7,2815.9,0.002]
[1769702700627,0.88759497,2816.6,2815.9,0.002]
[1769702702021,14.00304666,2816.7,2815.9,0.002]
[1769702702221,14.00302754,2816.7,2815.9,0.002]
[1769702702657,0.88746893,2817.0,2815.9,0.002]
[1769702702867,2.71713946,2817.0,2815.9,0.002]
[1769702703158,0.001,2817.5,2815.9,9.56531931]
[1769702703375,0.001,2817.5,2816.2,9.59887676]
[1769702703698,16.66311956,2818.8,2816.8,0.03555745]
[1769702703874,16.66311956,2818.8,2816.6,9.59787676]
[1769702703875,16.66311956,2818.8,2816.7,0.03555745]
[1769702704052,1.78986213,2818.7,2817.2,9.56231931]
[1769702704250,14.35094207,2818.9,2816.8,0.95978768]
[1769702704490,13.11546305,2818.6,2816.8,0.95978768]
[1769702704666,13.11546305,2818.6,2816.5,0.2335703]
[1769702705291,0.88699662,2818.5,2816.6,0.88759497]
[1769702705670,14.03801712,2818.5,2816.6,0.88759497]
[1769702706056,13.11546305,2818.1,2816.6,0.88759497]
[1769702706754,0.88699662,2818.5,2816.7,9.79588961]
[1769702706955,0.88690222,2818.8,2817.0,0.03555745]
[1769702707287,13.11546305,2819.1,2817.0,0.03555745]
[1769702707288,0.88686743,2819.0,2817.3,0.88737443]
[1769702707525,0.88686743,2819.0,2817.0,3.58505519]
[1769702707526,13.11546305,2818.6,2816.8,1.0719042]
[1769702707660,13.11546305,2817.8,2816.6,0.88758948]
[1769702707857,13.11546305,2817.8,2816.4,0.88764123]
[1769702708058,13.11546305,2817.8,2815.7,0.03755745]
[1769702708303,13.11546305,2818.3,2817.2,0.88740064]
[1769702708457,13.11546305,2818.3,2816.8,0.88752988]
[1769702708659,13.11546305,2818.1,2816.4,0.2335703]
[1769702708859,13.11546305,2818.1,2816.9,0.88747961]
[1769702709092,13.11546305,2818.1,2816.6,0.88757671]
[1769702709262,0.887154,2818.0,2815.9,10.68570522]
[1769702709469,0.887154,2818.0,2816.3,0.26912775]
[1769702709690,0.887154,2818.0,2816.4,0.98314471]
[1769702710758,14.00261705,2818.0,2816.4,0.98314471]
[1769702710973,14.00261705,2818.0,2815.9,0.88981561]
[1769702711375,14.00261705,2818.0,2815.9,0.002]
[1769702711795,13.11546305,2817.8,2815.9,0.002]
[1769702712186,13.11546305,2817.8,2815.9,0.2355703]
[1769702712383,13.11546305,2817.8,2816.0,0.03555745]
[1769702712575,1.31154631,2817.7,2816.0,0.39799519]
[1769702713088,0.887154,2818.0,2816.3,0.03555745]
[1769702713298,2.19865886,2818.2,2816.7,0.03555745]
[1769702713498,15.31412191,2818.2,2816.6,0.88759497]
[1769702714578,0.001,2818.8,2817.4,0.03555745]
[1769702714781,0.001,2818.8,2817.8,0.03555745]
[1769702715062,14.00337012,2818.8,2817.4,0.744]
[1769702715271,14.00337012,2818.8,2817.5,0.88731144]
[1769702715474,1.7550979,2818.7,2817.5,0.88731144]
[1769702715671,13.11546305,2818.6,2816.1,9.56431931]
[1769702715891,13.11546305,2818.6,2817.4,0.88731874]
[1769702716257,1.7550979,2818.7,2817.4,0.88731874]
[1769702716458,0.88790728,2818.8,2817.4,0.88731874]
[1769702716664,0.88790728,2818.8,2817.5,0.4436813]
[1769702716874,0.001,2818.8,2817.5,0.4436813]
[1769702717365,0.001,2818.8,2817.6,0.88727995]
[1769702717880,0.001,2818.8,2817.5,1.33098458]
[1769702719497,0.88790222,2818.8,2817.5,1.33098458]
[1769702719702,0.001,2818.8,2817.6,0.56243493]
[1769702721695,0.001,2818.8,2817.7,0.88724846]
[1769702723163,0.001,2818.8,2817.6,1.44970463]
[1769702723164,13.11646305,2818.8,2817.6,1.44970463]
[1769702723596,0.001,2818.8,2817.6,1.44970463]
[1769702723779,0.001,2818.8,2817.7,0.54425057]
[1769702724102,13.11646305,2818.8,2817.6,0.88726378]
[1769702724793,13.11646305,2818.8,2817.6,0.88727136]
[1769702725002,0.001,2818.6,2817.6,0.88727136]
[1769702728818,0.001,2818.6,2817.5,0.4436813]
[1769702728997,13.22735611,2818.5,2817.0,3.54983214]
[1769702729197,13.22735611,2818.5,2816.6,0.2335703]
[1769702729198,13.22735611,2818.5,2816.6,0.03555745]
[1769702729507,0.001,2818.6,2816.5,0.743]
[1769702729508,13.22735611,2818.3,2817.0,0.88745116]
[1769702729706,14.62439172,2818.2,2817.0,0.88744119]
[1769702730005,14.62439172,2818.2,2816.8,0.88751338]
[1769702730212,13.22735611,2818.0,2816.6,0.88759497]
[1769702731477,2.28414741,2818.2,2816.7,0.03555745]
[1769702731679,14.11436895,2818.5,2816.8,0.2335703]
[1769702732123,14.11436895,2818.5,2816.8,0.88753195]
[1769702732281,0.88701284,2818.5,2816.9,9.79588961]
[1769702732612,14.75852715,2818.5,2816.8,0.88753195]
[1769702734017,0.001,2818.6,2817.1,9.59787676]
[1769702734197,13.87251431,2818.6,2817.3,0.88737443]
[1769702734401,0.001,2818.6,2817.3,0.88737443]
[1769702735287,13.87251431,2818.6,2817.3,0.88737443]
[1769702735796,0.001,2818.6,2817.3,0.88737443]
[1769702735986,0.001,2818.6,2817.4,0.54200169]
[1769702736189,0.001,2818.6,2817.5,1.63031144]
[1769702737122,0.001,2818.8,2817.6,9.83144706]
[1769702737321,17.41826064,2819.5,2817.6,9.83144706]
[1769702737488,0.88674266,2819.4,2817.9,9.56131931]
[1769702737821,1.33019821,2819.4,2818.0,0.95968768]
[1769702738008,13.87251431,2819.6,2817.5,11.19163075]
[1769702738009,0.001,2819.6,2818.3,4.6843083]
[1769702738194,0.001,2819.6,2818.6,0.03555745]
[1769702738515,13.87151431,2820.4,2818.7,0.2335703]
[1769702738984,13.87151431,2820.4,2818.9,0.2335703]
[1769702739180,3.54511828,2820.8,2818.9,0.2335703]
[1769702739385,2.62799115,2820.7,2818.9,0.72881391]
[1769702739584,13.87151431,2820.9,2819.2,0.26912775]
[1769702739834,14.7577877,2820.8,2818.9,0.49524361]
[1769702740038,14.7577877,2820.8,2818.7,0.2335703]
[1769702740186,14.7577877,2820.8,2819.0,0.8868393]
[1769702740394,14.7577877,2820.8,2819.1,0.2335703]
[1769702740586,14.7577877,2820.8,2819.0,0.8868393]
[1769702740787,15.70180244,2820.7,2819.1,0.44341965]
[1769702742538,13.87151431,2820.6,2819.2,0.88677639]
[1769702743207,12.80640035,2820.6,2819.2,0.88677639]
[1769702743911,12.80640035,2820.6,2819.1,1.33021729]
[1769702744114,12.80640035,2820.6,2818.6,4.29035721]
[1769702744115,13.87151431,2820.1,2818.7,0.88691091]
[1769702744319,13.87151431,2819.9,2818.6,0.88695692]
[1769702744642,14.75803913,2820.0,2818.6,0.88695788]
[1769702744805,14.75803913,2820.0,2818.7,1.38540788]
[1769702745013,13.87151431,2820.0,2818.8,0.22723658]
[1769702745305,13.87151431,2820.0,2818.8,1.61264446]
[1769702745531,13.87151431,2820.0,2818.9,1.38540788]
[1769702746354,13.87151431,2819.8,2818.9,2.27226085]
[1769702746561,13.87151431,2819.8,2818.6,0.88694897]
[1769702746842,13.87151431,2819.6,2818.6,0.88694376]
[1769702747041,13.87151431,2819.6,2818.4,1.10832631]
[1769702748355,13.87151431,2819.4,2818.4,1.10832631]
[1769702749315,13.87151431,2819.4,2818.2,0.002]
[1769702749514,13.87151431,2819.2,2818.2,0.002]
[1769702749825,1.47581963,2819.3,2818.2,0.002]
[1769702749826,14.61451431,2819.1,2818.2,0.002]
[1769702750454,13.87151431,2818.9,2817.3,3.54941563]
[1769702750750,0.743,2818.8,2817.3,3.54941563]
[1769702750918,13.87151431,2818.9,2817.4,0.57556659]
[1769702751354,13.87151431,2818.7,2817.4,0.57556659]
[1769702752658,13.87151431,2818.5,2817.4,0.57556659]
[1769702752809,13.87151431,2818.5,2817.3,0.88735833]
[1769702753342,13.87151431,2818.5,2817.4,0.88734035]
[1769702753552,13.87151431,2818.5,2817.3,0.88735454]
[1769702753705,13.87151431,2818.5,2817.2,0.33573118]
[1769702753907,13.87151431,2818.3,2817.2,0.33573118]
[1769702754513,13.87151431,2818.1,2817.2,0.33573118]
[1769702754739,14.75866831,2818.0,2817.2,0.33573118]
[1769702755057,13.87151431,2818.0,2817.2,1.22313272]
[1769702755708,0.88711131,2818.2,2817.2,1.22313272]
[1769702755902,0.88711131,2818.2,2817.3,0.47727565]
[1769702756151,14.76246241,2818.2,2817.3,0.47727565]
[1769702756442,14.76246241,2818.2,2817.2,1.22313272]
[1769702758348,14.76244421,2818.2,2817.2,1.22313272]
[1769702759339,13.8753511,2818.2,2817.2,1.22313272]
[1769702759514,1.63001091,2818.5,2817.2,1.22313272]
[1769702760035,15.50536201,2818.5,2817.2,1.22313272]
[1769702760235,13.8753511,2818.3,2817.2,0.33573118]
[1769702760436,1.9053241,2818.4,2816.9,0.88749382]
[1769702760437,13.8753511,2818.1,2816.9,0.88749382]
[1769702760611,13.8753511,2818.1,2816.9,0.88748981]
[1769702760805,13.8753511,2817.9,2816.8,0.002]
[1769702761002,13.8753511,2817.7,2816.3,0.88768952]
[1769702761816,13.8753511,2817.5,2816.1,0.24629955]
[1769702762040,13.8753511,2817.3,2816.1,0.24629955]
[1769702762242,13.8753511,2817.1,2816.1,0.24629955]
[1769702762915,13.8753511,2816.9,2816.1,0.24629955]
[1769702763418,13.8753511,2816.9,2815.9,0.002]
[1769702763419,13.8753511,2816.7,2815.9,0.002]
[1769702763611,14.6183511,2816.6,2815.7,0.002]
[1769702763806,15.33718621,2816.5,2815.7,0.002]
[1769702764315,15.33718621,2816.5,2815.6,0.002]
[1769702764817,13.8753511,2816.3,2815.6,0.002]
[1769702765016,13.8753511,2816.3,2815.1,0.002]
[1769702766012,0.744,2816.2,2815.1,0.002]
[1769702766212,15.33728621,2816.1,2815.1,0.002]
[1769702766951,13.8753511,2815.9,2815.1,0.002]
[1769702767660,13.8753511,2815.9,2814.8,0.002]
[1769702768369,14.6193511,2815.8,2814.8,0.002]
[1769702768780,14.76322978,2815.7,2814.8,0.002]
[1769702768998,13.8753511,2815.5,2814.2,0.24436783]
[1769702769207,13.8753511,2814.9,2813.6,0.002]
[1769702769475,13.8753511,2814.6,2813.5,0.88855553]
[1769702769660,0.744,2814.7,2813.4,0.002]
[1769702769847,0.744,2814.8,2813.7,0.88848361]
[1769702770034,14.6193511,2814.8,2813.4,0.002]
[1769702770230,15.33728621,2814.7,2813.4,0.89058298]
[1769702770450,15.33728621,2814.7,2813.7,0.88848791]
[1769702770656,15.33728621,2814.7,2813.5,0.88855214]
[1769702770935,14.76357678,2814.6,2813.4,0.002]
[1769702771243,16.2973054,2814.6,2813.4,0.002]
[1769702772044,13.8753511,2814.5,2812.6,0.88884019]
[1769702772245,13.8753511,2814.5,2812.2,0.03555745]
[1769702772466,2.4219543,2814.6,2813.1,0.88868293]
[1769702772467,14.6193511,2814.4,2813.1,0.88868293]
[1769702772761,13.8753511,2814.2,2813.6,0.002]
[1769702772962,1.63238349,2814.1,2813.6,0.002]
[1769702773154,0.88838349,2814.1,2813.6,0.002]
[1769702773637,14.76373459,2814.1,2813.4,0.002]
[1769702773838,0.88836644,2814.2,2813.4,0.002]
[1769702774033,1.8673966,2814.2,2813.4,0.002]
[1769702774469,1.1233966,2814.2,2813.4,0.002]
[1769702774847,0.88825723,2814.5,2813.4,0.002]
[1769702775106,2.42196305,2814.6,2813.4,0.002]
[1769702775236,0.88819261,2814.8,2813.4,0.002]
[1769702775439,15.50754371,2814.8,2813.4,0.002]
[1769702776882,3.55253826,2814.9,2813.4,0.002]
[1769702776883,0.744,2814.9,2813.4,0.002]
[1769702777195,0.744,2814.9,2813.5,0.03555745]
[1769702777398,13.8753511,2815.3,2813.6,0.03555745]
[1769702777709,2.19695462,2815.4,2813.8,0.03555745]
[1769702777843,0.88793039,2815.6,2813.8,0.03555745]
[1769702777844,1.63192845,2815.6,2814.0,0.03555745]
[1769702778046,1.63192845,2815.6,2813.8,0.03555745]
[1769702778395,0.001,2815.7,2814.3,0.03555745]
[1769702778545,0.001,2815.7,2814.5,0.03555745]
[1769702778747,0.001,2815.7,2814.3,0.2335703]
[1769702779051,0.001,2815.7,2814.4,0.8882888]
[1769702779249,0.001,2815.7,2814.5,0.4441444]
[1769702779668,0.001,2815.7,2814.5,0.47970185]
[1769702781143,0.001,2815.7,2814.6,0.88822568]
[1769702783179,3.55075808,2816.4,2814.9,0.03555745]
[1769702783180,0.88767667,2816.4,2814.9,0.03555745]
[1769702783380,13.8753511,2816.3,2814.8,0.88816256]
[1769702783597,13.8753511,2816.3,2814.6,3.55265027]
[1769702783598,15.35165388,2816.2,2814.6,0.88822338]
[1769702783747,15.35165388,2816.2,2814.7,0.88818505]
[1769702784249,15.35165388,2816.2,2814.6,0.88822104]
[1769702784589,15.35165388,2816.2,2814.7,0.88818833]
[1769702784754,14.6193511,2816.1,2814.7,0.88818833]
[1769702784955,13.8753511,2815.7,2814.1,0.88836069]
[1769702785150,13.8753511,2815.5,2813.7,0.88850979]
[1769702785878,13.8763511,2815.5,2813.8,0.03555745]
[1769702786081,15.70794132,2815.5,2813.7,0.88850979]
[1769702787078,15.70794132,2815.5,2813.5,3.58959661]
[1769702787079,13.54911154,2815.3,2813.5,3.58959661]
[1769702787384,13.54911154,2815.3,2813.7,0.03555745]
[1769702787592,2.72054956,2815.5,2813.9,0.03555745]
[1769702787898,0.88895934,2815.5,2814.0,0.03555745]
[1769702788056,14.43692715,2815.9,2813.8,14.5]
[1769702788453,13.54911154,2815.7,2813.5,3.55403916]
[1769702788790,13.54911154,2815.7,2813.5,3.58959661]
[1769702788990,13.54911154,2815.7,2813.5,18.08959661]
[1769702789194,13.54911154,2815.5,2813.6,3.1259181]
[1769702789696,13.54911154,2815.5,2813.7,0.03555745]
[1769702789892,13.54911154,2815.5,2813.6,3.16147555]
[1769702790050,13.54911154,2815.5,2813.6,3.1259181]
[1769702791216,13.54911154,2815.3,2813.8,0.88847821]
[1769702791371,13.54911154,2815.3,2813.9,11.60923911]
[1769702792092,3.55189315,2815.5,2814.0,10.15]
[1769702792093,0.88795016,2815.5,2814.0,10.15]
[1769702792300,13.54911154,2815.4,2814.0,10.15]
[1769702792472,13.32572951,2815.2,2814.1,0.87458674]
[1769702793177,13.32572951,2815.2,2814.1,3.81]
[1769702793178,14.21379742,2815.1,2814.1,3.81]
[1769702793402,13.32572951,2814.8,2813.4,0.002]
[1769702794309,13.32572951,2814.6,2813.4,0.8905858]
[1769702794832,13.32572951,2814.6,2813.4,0.002]
[1769702795012,13.32572951,2814.4,2813.4,0.8905825]
[1769702795191,13.32572951,2814.4,2813.4,0.002]
[1769702795698,14.21402557,2814.4,2813.4,0.002]
[1769702795878,14.21401849,2814.4,2813.4,0.002]
[1769702796906,13.32572951,2814.4,2813.4,0.002]
[1769702797304,14.06972951,2814.4,2813.4,0.002]
[1769702797612,5.0313393,2815.3,2813.6,0.002]
[1769702797613,13.32572951,2814.9,2813.6,0.002]
[1769702797829,0.18511537,2815.4,2813.9,0.03555745]
[1769702798036,0.88895404,2815.5,2813.9,0.03555745]
[1769702798348,0.88895404,2815.5,2814.1,0.03555745]
[1769702798349,0.001,2815.5,2814.1,0.03555745]
[1769702798798,13.32672951,2815.5,2813.8,0.03555745]
[1769702798997,13.32672951,2815.5,2813.9,0.03555745]
[1769702799230,14.21468282,2815.5,2813.9,0.03555745]
[1769702799530,14.21468282,2815.5,2813.8,0.88847821]
[1769702799832,13.32572951,2815.3,2813.9,1.89423911]
[1769702800000,13.32572951,2815.3,2813.8,0.88847821]
[1769702800315,14.21468869,2815.5,2813.8,0.88847821]
[1769702801326,13.32672951,2815.5,2814.1,0.88838349]
[1769702801629,13.32672951,2815.5,2814.2,0.44774749]
[1769702802536,0.001,2815.5,2814.2,0.48330494]
[1769702803034,0.001,2815.5,2814.6,0.03555745]
[1769702803199,0.001,2815.5,2814.5,0.88825723]
[1769702804636,14.21333297,2816.6,2814.7,0.03555745]
[1769702804834,13.32572951,2816.6,2815.1,0.03555745]
[1769702805174,13.32572951,2816.6,2814.9,0.03555745]
[1769702805340,13.32572951,2816.6,2815.0,0.88809946]
[1769702805513,14.21333502,2816.6,2815.0,0.88809946]
[1769702805738,13.32572951,2816.6,2815.0,0.88809946]
[1769702806041,14.73270246,2816.6,2815.1,0.44760548]
[1769702806814,15.62030017,2816.6,2815.1,0.44760548]
[1769702807212,15.62030017,2816.6,2815.2,0.88803637]
[1769702807435,13.32572951,2816.4,2815.1,0.88806258]
[1769702807740,14.06972951,2816.4,2815.1,0.88806258]
[1769702808543,14.06972951,2816.4,2814.4,1.07852462]
[1769702808741,13.32572951,2816.2,2815.0,0.88807758]
[1769702808968,13.32572951,2816.2,2814.4,4.63159551]
[1769702808969,13.32572951,2816.2,2814.4,1.07852462]
[1769702809261,13.32572951,2816.2,2814.5,0.88825723]
[1769702809262,13.32572951,2816.0,2814.5,0.88825723]
[1769702810956,13.32572951,2815.8,2814.4,1.07852462]
[1769702811115,13.32572951,2815.8,2814.4,1.96680375]
[1769702811315,14.21367126,2815.5,2814.4,1.96680375]
[1769702811528,0.744,2815.4,2814.4,1.96680375]
[1769702812324,0.744,2815.4,2813.6,0.002]
[1769702812325,13.32572951,2814.9,2813.6,0.002]
[1769702812523,0.1024,2815.0,2813.6,0.002]
[1769702812524,14.06972951,2814.8,2813.6,0.002]
[1769702812725,1.40697295,2814.7,2813.6,0.002]
[1769702813045,0.744,2814.6,2813.6,0.002]
[1769702813251,14.06972951,2814.6,2813.6,0.002]
[1769702813449,13.32572951,2815.1,2813.6,0.002]
[1769702813636,17.62209304,2815.1,2813.6,0.002]
[1769702813811,15.1767456,2815.0,2813.6,0.002]
[1769702814212,0.744,2814.9,2813.6,0.002]
[1769702814424,15.1767456,2815.0,2813.6,0.002]
[1769702814624,0.744,2814.9,2813.6,0.002]
[1769702814831,0.744,2815.0,2813.6,0.002]
[1769702815053,13.32572951,2814.4,2813.1,0.8628197]
[1769702815346,0.88835192,2814.2,2812.6,0.88885728]
[1769702816429,2.2244661,2814.3,2812.6,0.88885728]
[1769702816747,2.22445643,2814.3,2812.6,0.88885728]
[1769702816948,13.00990259,2814.2,2812.6,0.88885728]
[1769702817139,1.5234359,2814.1,2812.7,0.44663297]
[1769702817338,0.88841506,2814.0,2812.7,0.44663297]
[1769702817539,13.89831765,2814.0,2812.7,0.44663297]
[1769702817738,13.89831765,2814.0,2812.7,0.002]
[1769702818143,13.89831765,2814.0,2812.7,0.89081528]
[1769702818462,13.89831765,2814.0,2812.7,0.89080572]
[1769702819550,13.89831765,2814.0,2812.7,0.002]
[1769702819849,13.00990259,2813.8,2812.7,0.002]
[1769702820218,1.74519473,2813.9,2812.7,0.002]
[1769702820422,0.88842243,2814.0,2812.7,0.002]
[1769702820622,13.89832502,2814.0,2812.7,0.002]
[1769702821462,13.00990259,2813.3,2812.2,0.002]
[1769702821778,13.00990259,2812.8,2810.7,3.55780505]
[1769702822064,13.04546004,2812.8,2810.8,3.91345875]
[1769702822246,13.04546004,2812.8,2810.8,0.3557805]
[1769702822426,13.04546004,2812.8,2810.1,0.05527975]
[1769702822427,13.00990259,2812.5,2810.1,0.05527975]
[1769702822627,13.00990259,2812.3,2810.7,3.55782029]
[1769702822841,13.00990259,2812.3,2810.9,0.88939402]
[1769702823164,13.00990259,2812.3,2811.0,0.88934512]
[1769702823363,13.00990259,2812.3,2810.7,0.88943787]
[1769702823523,13.89894953,2812.0,2810.1,0.0197223]
[1769702823723,13.00990259,2811.4,2810.1,0.0197223]
[1769702824079,0.745,2811.3,2810.1,0.90936798]
[1769702824257,0.13795745,2811.9,2810.1,0.90936798]
[1769702824258,13.00990259,2811.9,2810.1,0.90936798]
[1769702824469,14.39979754,2811.8,2810.2,0.44680734]
[1769702824757,14.43535499,2811.8,2810.1,0.90936922]
[1769702825333,0.745,2811.7,2810.1,0.90936922]
[1769702825536,13.89907601,2811.6,2810.1,0.90936794]
[1769702825927,0.745,2811.5,2810.1,0.90936794]
[1769702826129,1.38989495,2811.8,2810.1,0.90936794]
[1769702826335,13.75490259,2811.9,2810.2,0.44679602]
[1769702827233,13.75490259,2811.9,2810.1,0.90936434]
[1769702827435,13.00990259,2811.7,2810.1,0.90936434]
[1769702827639,13.00990259,2811.5,2810.1,0.90936434]
[1769702828046,13.75490259,2811.4,2810.1,0.0197223]
[1769702828250,13.00990259,2810.6,2809.5,0.00202817]
[1769702828446,13.00990259,2810.5,2809.5,0.00202817]
[1769702828646,0.745,2810.4,2809.5,0.00202817]
[1769702828845,0.745,2810.8,2809.6,0.88979674]
[1769702829076,13.75490259,2810.8,2809.6,0.88979024]
[1769702829269,13.00990259,2810.8,2809.7,0.88977272]
[1769702829455,13.89939237,2810.6,2809.5,0.00202817]
[1769702830166,13.75490259,2810.6,2809.5,0.00202817]
[1769702830370,13.8992658,2811.1,2809.5,0.00202817]
[1769702830570,13.00990259,2810.9,2809.5,0.00202817]
[1769702831072,13.11230259,2810.6,2808.5,0.89015488]
[1769702831258,13.11230259,2810.6,2808.3,3.59617699]
[1769702831259,13.00990259,2810.0,2808.3,0.89019947]
[1769702831447,0.88974304,2809.8,2807.9,0.89034509]
[1769702831648,15.7200033,2809.8,2807.9,0.89034509]
[1769702832060,0.745,2809.7,2807.9,0.89034509]
[1769702832368,0.745,2809.7,2807.8,3.56138039]
[1769702832369,13.00990259,2809.5,2807.8,0.89035668]
[1769702832749,0.745,2809.4,2807.8,0.89035668]
[1769702832963,13.00990259,2809.3,2807.8,0.89035668]
[1769702833159,15.13039285,2809.2,2807.8,1.33554307]
[1769702833469,0.745,2809.1,2807.8,1.33554307]
[1769702833959,14.38539285,2809.2,2807.8,1.33554307]
[1769702834159,0.745,2809.1,2807.8,1.33554307]
[1769702834571,3.55914436,2809.7,2807.8,1.33554307]
[1769702834572,13.00990259,2809.9,2808.0,0.03555745]
[1769702834882,1.63462389,2810.2,2808.6,0.03555745]
[1769702835093,14.64452648,2810.2,2808.1,0.26912775]
[1769702835249,14.64452648,2810.2,2808.1,0.03555745]
[1769702835465,14.64452648,2810.2,2808.1,0.002]
[1769702835665,13.00990259,2809.8,2808.1,0.002]
[1769702836391,13.75490259,2809.7,2808.1,0.002]
[1769702837193,13.00990259,2809.5,2808.1,0.002]
[1769702837861,0.88986972,2809.4,2808.1,0.002]
[1769702838091,13.11230259,2809.2,2807.9,0.002]
[1769702838401,13.00990259,2808.4,2807.2,0.44953899]
[1769702838599,0.7162931,2809.2,2807.2,0.44953899]
[1769702838600,13.75490259,2808.3,2807.2,0.44953899]
[1769702838904,13.75490259,2808.3,2807.2,1.34008653]
[1769702839097,13.75490259,2808.3,2807.2,0.44953899]
[1769702839415,14.38539285,2808.2,2807.2,0.44953899]
[1769702839563,14.38539285,2808.2,2807.2,1.34008512]
[1769702839758,15.13039285,2808.2,2807.2,0.44953899]
[1769702840118,0.89028168,2808.1,2807.2,0.44953899]
[1769702840264,13.90018427,2808.1,2807.2,0.44953899]
[1769702840460,14.96808272,2808.0,2806.7,0.002]
[1769702840673,13.00990259,2807.5,2805.9,0.89095654]
[1769702841007,0.746,2807.4,2806.0,0.03555745]
[1769702841158,0.746,2807.4,2805.9,0.03555745]
[1769702841361,0.746,2807.4,2806.4,0.89080444]
[1769702841558,0.746,2807.4,2806.2,3.56346677]
[1769702841762,14.05454452,2807.9,2806.6,3.56300095]
[1769702841990,14.05454452,2807.9,2806.0,0.03555745]
[1769702841991,1.40545445,2807.8,2806.9,0.8906414]
[1769702842291,14.19890517,2807.9,2806.7,1.24700726]
[1769702842501,14.1989008,2807.9,2806.7,0.3563001]
[1769702842666,14.1989008,2807.9,2806.3,0.89083496]
[1769702842863,14.1989008,2807.9,2806.5,0.89078402]
[1769702843204,14.1989008,2807.9,2806.4,0.89080763]
[1769702843366,0.746,2807.8,2805.9,3.56387673]
[1769702843708,0.746,2807.8,2806.5,0.89078005]
[1769702843879,0.19349982,2807.7,2806.5,0.89076167]